bitfinex/quotes_SOLUSD_20220307
["timestamp","ask_amount","ask_price","bid_price","bid_amount"]
[1646628267056,47.1797,82.948,82.888,30.0256]
[1646628269057,47.1797,82.948,82.87,14.68]
[1646628269058,122.28375259,82.947,82.87,14.68]
[1646628269257,5.03068198,82.946,82.85,14.68]
[1646628269460,0.48220227,82.944,82.85,14.68]
[1646628269657,6.03,82.943,82.867,6.03]
[1646628269856,6.03,82.943,82.838,13.95554005]
[1646628269857,122.38220227,82.942,82.858,6.03]
[1646628270057,121.9,82.94,82.858,6.03]
[1646628270258,5.61538749,82.937,82.852,6.031]
[1646628270459,121.9,82.935,82.852,6.031]
[1646628270660,121.9,82.933,82.852,8.86713526]
[1646628270861,121.9,82.931,82.852,8.86713526]
[1646628271066,6.031,82.93,82.852,8.86713526]
[1646628271962,6.032,82.931,82.852,8.86713526]
[1646628272164,6.031,82.934,82.852,8.86713526]
[1646628272662,137.54460745,82.933,82.852,8.86713526]
[1646628272863,6.031,82.932,82.852,8.86713526]
[1646628273064,121.9,82.931,82.852,8.86713526]
[1646628273264,6.031,82.93,82.852,8.86713526]
[1646628273864,6.031,82.93,82.852,6.031]
[1646628274265,6.032,82.933,82.852,6.031]
[1646628274867,121.9,82.931,82.852,6.031]
[1646628275064,6.031,82.93,82.852,6.031]
[1646628275965,6.032,82.933,82.852,6.031]
[1646628276368,121.9,82.931,82.852,6.031]
[1646628276567,6.031,82.93,82.852,8.86713526]
[1646628277669,127.931,82.93,82.852,8.86713526]
[1646628278973,121.9,82.929,82.852,8.86713526]
[1646628280077,121.9,82.928,82.852,8.86713526]
[1646628281176,2.83613526,82.934,82.852,8.86713526]
[1646628282477,6.031,82.933,82.852,8.86713526]
[1646628284279,2.83613526,82.932,82.852,8.86713526]
[1646628284679,6.031,82.931,82.852,6.031]
[1646628284879,121.9,82.93,82.852,6.031]
[1646628285081,5.16438369,82.927,82.852,6.031]
[1646628285280,0.22908369,82.924,82.852,6.031]
[1646628285480,127.932,82.923,82.852,6.031]
[1646628285680,143.56145911,82.923,82.852,6.031]
[1646628285980,2.83613526,82.922,82.852,6.031]
[1646628286180,127.932,82.921,82.852,6.031]
[1646628286584,4.00601227,82.918,82.852,6.031]
[1646628286880,6.032,82.917,82.852,6.031]
[1646628287082,121.9,82.916,82.852,6.031]
[1646628287281,6.032,82.915,82.852,6.031]
[1646628287482,121.9,82.914,82.852,6.031]
[1646628287683,6.032,82.913,82.852,6.031]
[1646628292987,121.9,82.914,82.852,6.031]
[1646628294088,6.032,82.913,82.852,6.031]
[1646628294488,121.9,82.912,82.852,6.031]
[1646628294692,6.032,82.911,82.852,6.031]
[1646628295890,6.032,82.912,82.852,6.031]
[1646628300212,2.83613526,82.911,82.852,6.031]
[1646628300415,6.032,82.91,82.852,6.031]
[1646628300612,6.032,82.91,82.837,17.8102]
[1646628303315,2.83613526,82.909,82.837,17.8102]
[1646628303517,6.033,82.908,82.837,17.8102]
[1646628305316,6.033,82.912,82.837,17.8102]
[1646628308719,6.033,82.912,82.84,18.1044]
[1646628308918,24.6275,82.913,82.841,0.39228483]
[1646628309118,24.6275,82.913,82.841,24.26718483]
[1646628309619,24.6275,82.913,82.841,72.41327478]
[1646628311827,24.6275,82.913,82.841,23.8749]
[1646628314629,6.033,82.912,82.841,23.8749]
[1646628318133,0.12660888,82.911,82.841,23.8749]
[1646628318331,6.033,82.91,82.841,23.8749]
[1646628319835,6.033,82.912,82.841,23.8749]
[1646628320037,146.5275,82.913,82.841,23.8749]
[1646628323841,6.033,82.912,82.841,23.8749]
[1646628325244,6.033,82.912,82.85,18.1016]
[1646628325446,24.6275,82.913,82.851,24.73374865]
[1646628327345,24.6275,82.913,82.851,24.494]
[1646628332667,6.032,82.912,82.851,24.494]
[1646628334771,24.6275,82.913,82.851,24.494]
[1646628337777,146.5275,82.913,82.851,24.494]
[1646628337976,6.032,82.912,82.851,24.494]
[1646628338175,121.9,82.911,82.851,24.494]
[1646628338476,6.032,82.91,82.851,24.494]
[1646628338674,121.9,82.909,82.851,24.494]
[1646628339075,15.66072561,82.91,82.782,4.87662535]
[1646628339076,0.35411666,82.906,82.815,18.4037]
[1646628339277,121.9,82.905,82.824,24.7563]
[1646628339475,121.9,82.905,82.792,2.83613526]
[1646628339476,0.3589944,82.902,82.792,2.83613526]
[1646628339677,6.035,82.901,82.792,2.83613526]
[1646628339876,125.17618035,82.899,82.792,9.13183864]
[1646628340076,121.9,82.889,82.79,14.68]
[1646628340277,0.3589944,82.886,82.79,14.68]
[1646628340775,0.3589944,82.882,82.79,14.68]
[1646628340981,0.3589944,82.88,82.784,47.2836]
[1646628341177,0.3589944,82.878,82.784,47.2836]
[1646628341577,0.3589944,82.875,82.784,47.2836]
[1646628341776,121.9,82.872,82.785,56.18430457]
[1646628341977,121.9,82.869,82.785,56.18430457]
[1646628342179,6.035,82.868,82.785,56.18430457]
[1646628342377,0.3589944,82.867,82.785,56.18430457]
[1646628342677,6.035,82.866,82.785,56.18430457]
[1646628343080,4.45978132,82.863,82.785,56.18430457]
[1646628343278,6.035,82.862,82.785,56.18430457]
[1646628347085,0.3589944,82.861,82.785,56.18430457]
[1646628347281,6.035,82.86,82.785,56.18430457]
[1646628348081,0.3589944,82.859,82.785,56.18430457]
[1646628352385,0.3589944,82.859,82.784,47.2836]
[1646628352585,0.37045682,82.857,82.784,47.2836]
[1646628352787,0.4397331,82.855,82.784,47.2836]
[1646628352987,0.4397331,82.852,82.784,47.2836]
[1646628353185,122.3397331,82.852,82.784,47.2836]
[1646628353389,122.3397331,82.852,82.785,60.24460265]
[1646628355990,6.037,82.851,82.785,60.24460265]
[1646628357790,0.4397331,82.85,82.785,60.24460265]
[1646628357990,6.037,82.849,82.785,60.24460265]
[1646628359497,6.037,82.849,82.784,47.2836]
[1646628359693,0.4397331,82.848,82.784,47.2836]
[1646628359898,0.4397331,82.846,82.784,47.2836]
[1646628360194,4.94443185,82.844,82.784,47.2836]
[1646628360395,0.4397331,82.842,82.774,18.3611]
[1646628360598,0.4397331,82.84,82.774,18.3611]
[1646628360794,6.038,82.839,82.774,18.3611]
[1646628360995,0.4397331,82.838,82.774,18.3611]
[1646628361200,0.4397331,82.836,82.774,18.3611]
[1646628361399,5.91040718,82.834,82.774,18.3611]
[1646628361696,0.4397331,82.833,82.774,18.3611]
[1646628361997,6.038,82.832,82.774,18.3611]
[1646628362395,24.1119,82.831,82.774,18.3611]
[1646628362595,6.038,82.83,82.774,18.3611]
[1646628362995,24.1119,82.831,82.774,18.3611]
[1646628370704,24.1119,82.831,82.773,22.6643]
[1646628371508,24.1119,82.831,82.773,41.0207]
[1646628382132,6.038,82.83,82.773,41.0207]
[1646628385532,24.1119,82.831,82.773,41.0207]
[1646628387535,1.62926979,82.839,82.774,0.5]
[1646628387836,1.62926979,82.848,82.774,16.46502603]
[1646628388036,1.62926979,82.855,82.775,18.80116129]
[1646628388234,1.62926979,82.856,82.79,14.68]
[1646628388534,54.69921452,82.855,82.791,24.5613]
[1646628388834,1.62926979,82.86,82.791,27.39743526]
[1646628389035,23.4311,82.863,82.792,2.83613526]
[1646628389235,23.4311,82.863,82.792,18.80116129]
[1646628389437,23.4311,82.863,82.793,0.5]
[1646628389637,61.132371,82.859,82.793,0.5]
[1646628390038,1.62926979,82.867,82.801,121.9]
[1646628390237,1.62926979,82.888,82.811,121.9]
[1646628390436,7.66426979,82.91,82.814,0.5]
[1646628390637,6.035,82.91,82.814,0.5]
[1646628390837,6.034,82.917,82.814,0.5]
[1646628391035,64.44437589,82.916,82.816,0.5]
[1646628391237,6.033,82.915,82.83,14.68]
[1646628391437,6.033,82.915,82.84,14.68]
[1646628391638,127.933,82.915,82.84,14.68]
[1646628392241,121.9,82.913,82.841,24.2299]
[1646628392639,6.033,82.912,82.841,24.2299]
[1646628392840,1.62926979,82.902,82.841,24.2299]
[1646628393040,121.9,82.9,82.841,24.2299]
[1646628393240,64.44437589,82.916,82.841,24.2299]
[1646628393241,123.52926979,82.898,82.841,24.2299]
[1646628393440,121.9,82.898,82.841,24.2299]
[1646628393643,6.033,82.897,82.841,24.2299]
[1646628394340,27.75969844,82.899,82.841,24.2299]
[1646628394540,121.9,82.898,82.841,24.2299]
[1646628394745,121.9,82.898,82.82,14.68]
[1646628394942,121.9,82.898,82.821,22.5809]
[1646628395343,1.62926979,82.897,82.821,22.5809]
[1646628395542,121.9,82.898,82.821,22.5809]
[1646628395543,123.52926979,82.898,82.821,22.5809]
[1646628395743,1.62926979,82.897,82.822,52.66124995]
[1646628395944,121.9,82.898,82.822,52.66124995]
[1646628396343,29.38896823,82.899,82.822,52.66124995]
[1646628396545,6.034,82.898,82.822,52.66124995]
[1646628396745,6.034,82.898,82.83,18.1068]
[1646628397346,23.438,82.899,82.83,18.1068]
[1646628397945,23.438,82.899,82.831,24.6229]
[1646628399747,121.9,82.898,82.831,24.6229]
[1646628400348,6.033,82.897,82.831,24.6229]
[1646628402452,6.033,82.898,82.831,24.6229]
[1646628402850,127.933,82.898,82.831,24.6229]
[1646628406056,6.033,82.898,82.831,24.6229]
[1646628406259,127.933,82.898,82.831,24.6229]
[1646628407660,6.033,82.898,82.831,24.6229]
[1646628408259,127.933,82.898,82.831,24.6229]
[1646628408858,6.033,82.898,82.831,24.6229]
[1646628409358,127.933,82.898,82.831,24.6229]
[1646628409560,121.9,82.898,82.831,24.6229]
[1646628409959,23.438,82.899,82.831,24.6229]
[1646628410762,6.033,82.898,82.831,24.6229]
[1646628412363,6.033,82.906,82.832,2.83613526]
[1646628412564,6.033,82.912,82.832,2.83613526]
[1646628412986,22.6368,82.913,82.832,2.83613526]
[1646628413186,24.6791,82.912,82.832,2.83613526]
[1646628414088,24.6791,82.912,82.84,18.1044]
[1646628414388,24.6791,82.912,82.841,52.83465923]
[1646628414587,24.6791,82.912,82.841,77.65865923]
[1646628415086,6.033,82.911,82.841,77.65865923]
[1646628415290,5.38035151,82.91,82.841,24.824]
[1646628415487,6.033,82.909,82.841,24.824]
[1646628415688,121.9,82.908,82.841,24.824]
[1646628415988,6.033,82.907,82.841,24.824]
[1646628416288,6.033,82.907,82.842,50.79786963]
[1646628416988,7.66226979,82.908,82.842,50.79786963]
[1646628417487,1.62926979,82.899,82.842,50.79786963]
[1646628417688,1.62926979,82.9,82.842,50.79786963]
[1646628418090,1.62926979,82.899,82.842,50.79786963]
[1646628419191,6.033,82.898,82.842,50.79786963]
[1646628419692,23.8055,82.897,82.842,50.79786963]
[1646628420791,23.8055,82.897,82.841,24.824]
[1646628423798,6.033,82.896,82.841,24.824]
[1646628424097,5.05431935,82.895,82.841,24.824]
[1646628424297,1.62926979,82.894,82.841,24.824]
[1646628424499,0.16140331,82.892,82.81,17.51613526]
[1646628424699,0.16140331,82.89,82.813,22.5802]
[1646628424900,121.9,82.889,82.813,77.97385393]
[1646628425101,121.9,82.889,82.813,22.5802]
[1646628425302,6.034,82.888,82.813,22.5802]
[1646628425503,1.62926979,82.886,82.813,22.5802]
[1646628425703,1.62926979,82.887,82.813,22.5802]
[1646628425902,4.71477598,82.884,82.813,22.5802]
[1646628426100,4.71477598,82.884,82.814,51.06501075]
[1646628427402,4.71477598,82.884,82.813,22.5802]
[1646628428604,127.935,82.883,82.813,22.5802]
[1646628428805,129.56426979,82.883,82.813,22.5802]
[1646628429206,1.62926979,82.882,82.813,22.55971164]
[1646628429405,6.035,82.881,82.813,22.55971164]
[1646628429606,7.66426979,82.881,82.813,22.55971164]
[1646628429806,121.9,82.88,82.813,22.55971164]
[1646628430008,6.035,82.879,82.813,22.55971164]
[1646628431009,6.035,82.88,82.813,22.55971164]
[1646628431209,6.035,82.881,82.813,22.55971164]
[1646628432509,6.035,82.881,82.791,2.83613526]
[1646628432711,0.23116853,82.868,82.792,24.2282]
[1646628432910,1.62926979,82.862,82.792,24.2282]
[1646628433110,4.81331296,82.866,82.791,17.8798]
[1646628433111,0.24781131,82.855,82.791,17.8798]
[1646628433312,123.52926979,82.853,82.791,17.8798]
[1646628433515,121.9,82.851,82.791,17.8798]
[1646628433709,0.24781131,82.849,82.77,48.84125441]
[1646628433908,0.24781131,82.849,82.771,24.2282]
[1646628433909,6.037,82.848,82.771,24.2282]
[1646628434611,122.14781131,82.849,82.771,24.2282]
[1646628435915,121.9,82.849,82.771,24.2282]
[1646628436513,121.9,82.849,82.772,2.83613526]
[1646628438817,6.037,82.848,82.772,2.83613526]
[1646628445530,121.9,82.849,82.772,2.83613526]
[1646628448741,6.037,82.848,82.772,2.83613526]
[1646628450845,6.037,82.848,82.772,30.00822023]
[1646628451049,6.037,82.848,82.773,15.23352333]
[1646628452749,121.9,82.849,82.773,15.23352333]
[1646628455452,6.037,82.848,82.773,15.23352333]
[1646628458756,6.037,82.848,82.774,0.5]
[1646628458956,6.037,82.849,82.774,0.5]
[1646628459157,6.037,82.849,82.774,15.73352333]
[1646628459556,6.037,82.849,82.774,15.23352333]
[1646628459957,23.4441,82.853,82.791,0.30329176]
[1646628460158,23.4441,82.853,82.791,24.27599176]
[1646628460359,1.62926979,82.869,82.792,18.06965859]
[1646628460558,24.94,82.879,82.793,0.41512486]
[1646628460758,24.94,82.879,82.793,45.65686842]
[1646628460957,26.56926979,82.879,82.794,2.83613526]
[1646628461158,26.56926979,82.879,82.801,0.41512486]
[1646628461372,1.62926979,82.871,82.801,51.35616568]
[1646628461758,1.62926979,82.871,82.802,39.45652333]
[1646628461957,1.62926979,82.869,82.802,39.45652333]
[1646628462357,1.62926979,82.875,82.802,39.45652333]
[1646628462558,1.62926979,82.877,82.802,39.45652333]
[1646628462757,55.4234696,82.878,82.802,39.45652333]
[1646628463158,1.62926979,82.877,82.81,18.1108]
[1646628463359,59.82919981,82.878,82.81,32.7908]
[1646628463559,53.79419981,82.878,82.81,32.7908]
[1646628463758,53.79419981,82.878,82.811,2.83613526]
[1646628464158,53.79419981,82.878,82.812,24.223]
[1646628464762,53.79419981,82.878,82.813,2.83613526]
[1646628466266,53.79419981,82.878,82.82,18.1092]
[1646628469268,53.79419981,82.878,82.812,42.2727]
[1646628469468,59.82919981,82.878,82.812,42.2727]
[1646628471270,53.79419981,82.878,82.812,42.2727]
[1646628472373,59.82919981,82.878,82.812,42.2727]
[1646628477196,59.82919981,82.878,82.812,24.223]
[1646628477796,53.79419981,82.878,82.813,6.035]
[1646628482806,6.035,82.877,82.812,24.223]
[1646628485708,6.035,82.877,82.813,6.035]
[1646628486711,6.035,82.877,82.812,24.223]
[1646628487510,129.56426979,82.877,82.812,24.223]
[1646628488216,1.62926979,82.876,82.812,24.223]
[1646628488416,6.035,82.875,82.812,24.223]
[1646628488613,6.035,82.876,82.812,24.223]
[1646628489012,7.66426979,82.876,82.812,24.223]
[1646628489215,6.035,82.876,82.812,24.223]
[1646628489416,1.62926979,82.872,82.812,24.223]
[1646628493323,1.62926979,82.873,82.812,24.223]
[1646628493723,1.62926979,82.875,82.812,24.223]
[1646628493925,6.035,82.874,82.812,24.223]
[1646628494724,7.66426979,82.874,82.812,24.223]
[1646628495325,1.62926979,82.874,82.813,6.035]
[1646628496128,1.62926979,82.873,82.813,6.035]
[1646628496325,1.62926979,82.874,82.813,6.035]
[1646628496528,1.62926979,82.873,82.813,6.035]
[1646628496926,1.62926979,82.874,82.813,6.035]
[1646628497325,1.62926979,82.873,82.813,6.035]
[1646628498127,1.62926979,82.872,82.813,6.035]
[1646628498727,1.62926979,82.872,82.812,42.4706]
[1646628499348,1.62926979,82.873,82.812,42.4706]
[1646628499548,6.035,82.872,82.812,42.4706]
[1646628499750,1.62926979,82.873,82.812,42.4706]
[1646628502950,1.62926979,82.872,82.812,42.4706]
[1646628505553,1.62926979,82.873,82.812,42.4706]
[1646628505753,1.62926979,82.872,82.813,6.035]
[1646628505952,1.62926979,82.873,82.813,6.035]
[1646628506353,1.62926979,82.872,82.813,6.035]
[1646628508455,1.62926979,82.871,82.813,6.035]
[1646628509057,1.62926979,82.872,82.813,6.035]
[1646628509256,1.62926979,82.871,82.813,6.035]
[1646628509457,1.62926979,82.87,82.813,6.035]
[1646628509859,1.62926979,82.87,82.812,42.4706]
[1646628511161,1.62926979,82.872,82.812,42.4706]
[1646628511360,6.035,82.871,82.812,42.4706]
[1646628511559,24.0681,82.87,82.812,42.4706]
[1646628516064,24.0681,82.87,82.812,24.223]
[1646628516265,1.62926979,82.865,82.812,24.223]
[1646628516664,1.62926979,82.864,82.81,14.68]
[1646628516869,0.30956105,82.863,82.796,6.035]
[1646628517068,1.62926979,82.857,82.796,6.035]
[1646628517267,0.30956105,82.851,82.796,6.035]
[1646628517469,0.30956105,82.845,82.796,6.035]
[1646628517668,0.30956105,82.843,82.796,6.035]
[1646628517868,0.30956105,82.843,82.762,23.80948852]
[1646628518169,0.30956105,82.841,82.762,23.80948852]
[1646628518567,0.30956105,82.839,82.762,23.80948852]
[1646628518768,0.30956105,82.837,82.762,23.80948852]
[1646628518969,0.30956105,82.835,82.762,23.80948852]
[1646628519368,0.30956105,82.838,82.762,23.80948852]
[1646628519569,0.30956105,82.836,82.761,24.2524]
[1646628519770,0.30956105,82.836,82.75,23.80948852]
[1646628519771,1.62926979,82.828,82.75,23.80948852]
[1646628519972,7.56298964,82.826,82.734,2.83613526]
[1646628520171,0.30956105,82.824,82.74,14.68]
[1646628520370,0.30956105,82.822,82.74,14.68]
[1646628520571,121.9,82.819,82.74,14.68]
[1646628520772,4.88841949,82.816,82.74,14.68]
[1646628521172,6.04,82.815,82.74,14.68]
[1646628521972,6.04,82.815,82.738,47.22242371]
[1646628522974,6.04,82.815,82.739,23.3189]
[1646628525778,4.37136355,82.818,82.739,23.3189]
[1646628526177,6.04,82.817,82.739,23.3189]
[1646628526377,6.04,82.817,82.74,18.1272]
[1646628527178,4.37136355,82.818,82.74,18.1272]
[1646628527781,4.37136355,82.818,82.739,23.3189]
[1646628529379,4.37136355,82.818,82.735,63.85037251]
[1646628529580,121.9,82.816,82.735,63.85037251]
[1646628530285,6.04,82.815,82.735,63.85037251]
[1646628531780,6.04,82.815,82.735,89.98245748]
[1646628531980,6.04,82.815,82.74,18.1271]
[1646628532184,23.2555,82.817,82.74,18.1271]
[1646628532484,23.2555,82.817,82.741,44.30167023]
[1646628532910,23.2555,82.817,82.742,44.30167023]
[1646628533303,23.2555,82.817,82.743,18.16958526]
[1646628533704,23.2555,82.817,82.744,15.33345]
[1646628534105,23.2555,82.817,82.75,18.1241]
[1646628534704,23.2555,82.817,82.751,23.362]
[1646628536204,6.039,82.816,82.751,23.362]
[1646628542409,23.2555,82.817,82.751,23.362]
[1646628545717,6.039,82.816,82.751,23.362]
[1646628547618,6.039,82.816,82.76,18.1222]
[1646628547818,23.2555,82.817,82.761,54.33552374]
[1646628550321,23.2555,82.817,82.762,23.5609]
[1646628550527,1.62926979,82.835,82.771,0.21919086]
[1646628550731,1.62926979,82.848,82.78,14.68]
[1646628550921,1.62926979,82.848,82.77,14.68]
[1646628551121,1.62926979,82.847,82.773,0.3217915]
[1646628551322,1.62926979,82.848,82.773,0.3217915]
[1646628551525,56.79588586,82.846,82.774,28.96822023]
[1646628551723,56.79588586,82.846,82.791,62.22998638]
[1646628551923,22.9586,82.845,82.791,62.22998638]
[1646628554029,1.62926979,82.864,82.8,18.1135]
[1646628554227,28.921,82.868,82.801,0.11882102]
[1646628554627,60.68999661,82.867,82.801,0.11882102]
[1646628554827,60.68999661,82.867,82.8,18.1135]
[1646628555232,60.68999661,82.867,82.8,32.7935]
[1646628556428,60.68999661,82.867,82.8,50.9365]
[1646628559154,66.72499661,82.867,82.8,50.9365]
[1646628559333,127.50448178,82.866,82.8,14.68]
[1646628559632,6.035,82.865,82.793,23.2101]
[1646628560035,127.50448178,82.866,82.793,23.2101]
[1646628561932,127.50448178,82.866,82.794,6.036]
[1646628562133,6.035,82.865,82.793,23.2101]
[1646628564137,6.035,82.865,82.78,32.7979]
[1646628564537,6.035,82.865,82.781,60.73562079]
[1646628565539,6.035,82.865,82.79,18.1161]
[1646628565739,6.035,82.865,82.791,22.5354]
[1646628565939,6.035,82.865,82.792,6.035]
[1646628570655,60.68999661,82.867,82.792,6.035]
[1646628573759,6.035,82.866,82.791,22.5354]
[1646628576368,1.62926979,82.864,82.791,22.5354]
[1646628576669,6.035,82.863,82.791,22.5354]
[1646628576866,1.62926979,82.864,82.792,6.035]
[1646628578267,6.035,82.863,82.792,6.035]
[1646628578468,7.66426979,82.863,82.792,6.035]
[1646628578966,6.035,82.863,82.792,6.035]
[1646628579271,1.62926979,82.859,82.792,6.035]
[1646628580169,1.62926979,82.858,82.792,6.035]
[1646628580368,1.62926979,82.853,82.792,6.035]
[1646628580572,1.62926979,82.853,82.791,22.5354]
[1646628580770,1.62926979,82.854,82.791,22.5354]
[1646628581172,1.62926979,82.853,82.791,22.5354]
[1646628581371,1.62926979,82.852,82.791,22.5354]
[1646628581976,1.62926979,82.851,82.791,22.5354]
[1646628582176,1.62926979,82.849,82.791,22.5354]
[1646628583076,1.62926979,82.851,82.791,22.5354]
[1646628584678,6.037,82.85,82.791,22.5354]
[1646628584878,30.767,82.85,82.791,22.5354]
[1646628585282,24.73,82.85,82.792,6.037]
[1646628585481,26.35926979,82.85,82.792,6.037]
[1646628585881,24.73,82.85,82.792,6.037]
[1646628587187,24.73,82.85,82.793,2.83613526]
[1646628587385,1.62926979,82.859,82.794,6.21793805]
[1646628587584,24.7705,82.865,82.794,21.55138805]
[1646628587784,24.7705,82.865,82.795,2.83613526]
[1646628587986,24.7705,82.865,82.81,14.68]
[1646628588286,24.7705,82.865,82.812,48.98121127]
[1646628588485,24.7705,82.865,82.813,6.035]
[1646628595695,24.7705,82.865,82.812,51.63640848]
[1646628600819,24.7705,82.865,82.813,6.035]
[1646628601320,24.7705,82.865,82.82,18.1094]
[1646628601519,1.62926979,82.882,82.821,6.035]
[1646628601821,1.62926979,82.895,82.822,0.1672378]
[1646628602021,6.034,82.894,82.824,0.1672378]
[1646628602219,24.7456,82.893,82.825,6.034]
[1646628602420,52.8306336,82.892,82.825,6.034]
[1646628602620,52.8306336,82.892,82.826,2.83613526]
[1646628602819,52.8306336,82.892,82.827,6.034]
[1646628603219,52.8306336,82.892,82.83,18.1063]
[1646628603420,6.034,82.892,82.83,32.7863]
[1646628603620,24.7456,82.893,82.832,0.20955556]
[1646628603819,23.2513,82.905,82.831,8.87013526]
[1646628603820,1.62926979,82.903,82.834,0.24059927]
[1646628604020,23.2513,82.905,82.834,0.24059927]
[1646628604220,23.2513,82.905,82.836,0.24059927]
[1646628604421,23.2513,82.905,82.851,59.30909616]
[1646628604824,23.2513,82.905,82.852,6.032]
[1646628605022,23.2513,82.905,82.852,8.86813526]
[1646628605221,23.2513,82.905,82.853,2.83613526]
[1646628605423,23.2513,82.905,82.854,6.032]
[1646628607425,23.2513,82.905,82.86,18.0999]
[1646628607623,23.2513,82.905,82.861,6.032]
[1646628609327,24.7456,82.916,82.861,6.032]
[1646628609526,24.7456,82.916,82.87,18.0977]
[1646628609729,24.7456,82.916,82.871,6.031]
[1646628610330,52.99572203,82.94,82.871,6.031]
[1646628610529,24.7625,82.939,82.871,6.031]
[1646628613130,6.03,82.938,82.871,6.031]
[1646628615336,24.7625,82.939,82.871,6.031]
[1646628615737,24.7625,82.939,82.872,24.4861]
[1646628615937,24.7625,82.939,82.873,6.03]
[1646628617539,6.03,82.938,82.872,24.4861]
[1646628618136,127.93,82.938,82.872,24.4861]
[1646628618337,127.93,82.938,82.87,14.68]
[1646628618537,4.11740527,82.937,82.854,6.031]
[1646628618737,1.62926979,82.935,82.84,14.68]
[1646628618939,0.13522409,82.932,82.841,6.032]
[1646628619137,6.032,82.931,82.841,6.032]
[1646628619536,0.13522409,82.93,82.841,6.032]
[1646628619738,4.66196717,82.928,82.842,52.69458918]
[1646628619936,6.032,82.927,82.843,6.032]
[1646628620140,121.9,82.925,82.843,6.032]
[1646628620338,121.9,82.925,82.842,52.69458918]
[1646628620339,6.032,82.924,82.842,52.69458918]
[1646628621143,127.932,82.925,82.843,6.032]
[1646628621540,127.932,82.925,82.843,8.86813526]
[1646628622040,127.932,82.925,82.844,2.83613526]
[1646628622241,121.9,82.925,82.844,2.83613526]
[1646628622443,1.62926979,82.924,82.844,2.83613526]
[1646628622645,123.52926979,82.925,82.844,2.83613526]
[1646628623245,1.62926979,82.924,82.844,2.83613526]
[1646628623646,123.52926979,82.925,82.844,2.83613526]
[1646628624047,1.62926979,82.924,82.844,2.83613526]
[1646628624247,6.032,82.923,82.844,2.83613526]
[1646628624446,121.9,82.922,82.844,2.83613526]
[1646628624648,6.032,82.921,82.844,2.83613526]
[1646628624846,6.032,82.921,82.85,18.1022]
[1646628625049,23.0753,82.926,82.85,32.7822]
[1646628625250,121.9,82.925,82.85,32.7822]
[1646628625450,23.0753,82.926,82.85,32.7822]
[1646628625647,23.0753,82.926,82.851,43.04777488]
[1646628625848,23.0753,82.926,82.851,69.63693349]
[1646628626049,23.0753,82.926,82.852,73.07595179]
[1646628626449,23.0753,82.926,82.853,57.03071217]
[1646628626667,23.0753,82.926,82.853,73.07595179]
[1646628626872,23.0753,82.926,82.854,73.07595179]
[1646628627269,23.0753,82.926,82.855,70.23981653]
[1646628627474,23.0753,82.926,82.87,14.68]
[1646628627669,23.0753,82.926,82.871,62.67949057]
[1646628630074,121.9,82.925,82.87,14.68]
[1646628630276,121.9,82.925,82.861,22.6604]
[1646628630477,1.62926979,82.923,82.85,18.1488]
[1646628630676,1.62926979,82.919,82.85,18.1488]
[1646628630876,7.66126979,82.918,82.85,32.8288]
[1646628631078,7.66126979,82.918,82.851,52.83947058]
[1646628631279,1.62926979,82.918,82.851,52.83947058]
[1646628631477,1.62926979,82.917,82.851,52.83947058]
[1646628631677,1.62926979,82.918,82.851,52.83947058]
[1646628632077,1.62926979,82.917,82.851,52.83947058]
[1646628632281,1.62926979,82.916,82.851,52.83947058]
[1646628632478,1.62926979,82.912,82.851,52.83947058]